fUST/lending_fUST_20240608
["ID","MTS","AMOUNT","RATE_DAILY","PERIOD"]
[328832561,1717855859912,-601.82,0.00018356,2]
[328832562,1717855859921,-1687.64,0.00018356,2]
[328832563,1717855859931,-500.0,0.00018356,2]
[328832564,1717855859941,-500.0,0.00018356,2]
[328832565,1717855859951,-871.53,0.00018356,2]
[328832566,1717855859960,-1512.7,0.00018356,2]
[328832567,1717855859974,-528.82,0.00018356,2]
[328832568,1717855859985,-640.93818691,0.00018356,2]
[328832569,1717855859995,-438.93771851,0.00018356,2]
[328832570,1717855860004,-500.91,0.00018356,2]
[328832571,1717855860015,-500.0,0.00018356,2]
[328832572,1717855860025,-828.48,0.00018356,2]
[328832573,1717855860035,-1556.87,0.00018356,2]
[328832574,1717855860046,-536.0,0.00018356,2]
[328832575,1717855860058,-1276.66,0.00018356,2]
[328832576,1717855860069,-804.5,0.00018356,2]
[328832577,1717855860079,-500.0,0.00018356,2]
[328832578,1717855860088,-2157.52,0.00018356,2]
[328832579,1717855860098,-500.0,0.00018356,2]
[328832580,1717855860107,-447.67118053,0.00018356,2]
[328832581,1717855860118,-500.0,0.00018356,2]
[328832582,1717855860128,-500.0,0.00018356,2]
[328832583,1717855860138,-500.0,0.00018356,2]
[328832584,1717855860149,-500.0,0.00018356,2]
[328832585,1717855860159,-992.02,0.00018356,2]
[328832586,1717855860169,-500.0,0.00018356,2]
[328832587,1717855860178,-500.0,0.00018356,2]
[328832588,1717855860188,-542.52,0.00018356,2]
[328832589,1717855860198,-751.63,0.00018356,2]
[328832590,1717855860208,-558.38,0.00018356,2]
[328832591,1717855860218,-1485.0,0.00018356,2]
[328832592,1717855860227,-516.33,0.00018356,2]
[328832593,1717855860237,-177.060997,0.00018356,2]
[328832594,1717855860247,-177.060997,0.00018356,2]
[328832595,1717855860257,-177.060997,0.00018356,2]
[328832596,1717855860268,-177.061003,0.00018356,2]
[328832597,1717855860278,-1620.66,0.00018356,2]
[328832598,1717855860288,-500.0,0.00018356,2]
[328832599,1717855860299,-2740.38,0.00018356,2]
[328832600,1717855860309,-748.59,0.00018356,2]
[328832601,1717855860319,-500.0,0.00018356,2]
[328832602,1717855860330,-2769.46,0.00018356,2]
[328832603,1717855860340,-545.82,0.00018356,2]
[328832604,1717855860349,-1406.26,0.00018356,2]
[328832605,1717855860358,-1188.05,0.00018356,2]
[328832606,1717855860369,-500.0,0.00018356,2]
[328832607,1717855860378,-1936.86,0.00018356,2]
[328832608,1717855860389,-500.0,0.00018356,2]
[328832609,1717855860398,-500.0,0.00018356,2]
[328832610,1717855860409,-3481.6,0.00018356,2]
[328832611,1717855860419,-830.79,0.00018356,2]
[328832612,1717855860429,-500.0,0.00018356,2]
[328832613,1717855860439,-4055.43,0.00018356,2]
[328832614,1717855860449,-535.13,0.00018356,2]
[328832615,1717855860458,-1711.92,0.00018356,2]
[328832616,1717855860467,-7839.29,0.00018356,2]
[328832617,1717855860479,-500.0,0.00018356,2]
[328832618,1717855860491,-4240.14,0.00018356,2]
[328832619,1717855860502,-500.0,0.00018356,2]
[328832620,1717855860511,-500.0,0.00018356,2]
[328832621,1717855860521,-777.81,0.00018356,2]
[328832622,1717855860532,-656.61,0.00018356,2]
[328832623,1717855860542,-837.81,0.00018356,2]
[328832624,1717855860552,-2125.44,0.00018356,2]
[328832625,1717855860562,-858.72,0.00018356,2]
[328832626,1717855860573,-557.3,0.00018356,2]
[328832627,1717855860583,-500.0,0.00018356,2]
[328832628,1717855860593,-636.15509356,0.00018356,2]
[328832629,1717855860604,-484.12720114,0.00018356,2]
[328832630,1717855860614,-1581.68,0.00018356,2]
[328832631,1717855860623,-2009.83,0.00018356,2]
[328832632,1717855860633,-719.8,0.00018356,2]
[328832633,1717855860643,-5176.99,0.00018356,2]
[328832634,1717855860654,-639.4,0.00018356,2]
[328832635,1717855860664,-9141.08,0.00018356,2]
[328832636,1717855860674,-9689.53,0.00018356,2]
[328832637,1717855860685,-1831.62,0.00018356,2]
[328832638,1717855860694,-2465.76,0.00018356,2]
[328832639,1717855860704,-5196.1,0.00018356,2]
[328832640,1717855860715,-784.21,0.00018356,2]
[328832641,1717855860725,-500.0,0.00018356,2]
[328832642,1717855860735,-2008.87,0.00018356,2]
[328832643,1717855860745,-1321.87,0.00018356,2]
[328832644,1717855860755,-731.55,0.00018356,2]
[328832645,1717855860765,-500.0,0.00018356,2]
[328832646,1717855860775,-500.48,0.00018356,2]
[328832647,1717855860784,-913.11,0.00018356,2]
[328832648,1717855860794,-882.37,0.00018356,2]
[328832649,1717855860804,-500.0,0.00018356,2]
[328832650,1717855860814,-500.0,0.00018356,2]
[328832651,1717855860823,-529.22,0.00018356,2]
[328832652,1717855860916,-1072.16,0.00018356,2]
[328832653,1717855860927,-2705.64,0.00018356,2]
[328832654,1717855860937,-500.0,0.00018356,2]
[328832655,1717855860947,-568.5,0.00018356,2]
[328832656,1717855860957,-696.07,0.00018356,2]
[328832657,1717855860970,-150.0,0.0001836,2]
[328832658,1717855860981,-317.7,0.00018431,3]
[328832659,1717855860991,-151.0,0.00018431,3]
[328832660,1717855861001,-4234.812629,0.00018475,2]
[328832661,1717855861011,-4869.44421,0.00018475,2]
[328832662,1717855861021,-608.42083876,0.000185,2]
[328832663,1717855861030,-306.0,0.00018521,2]
[328832664,1717855861040,-1015.43,0.0001863,2]
[328832665,1717855861051,-568.09,0.0001863,2]
[328832666,1717855861061,-561.44,0.0001863,2]
[328832667,1717855861071,-1017.89,0.0001863,4]
[328832668,1717855861081,-500.0,0.0001863,2]
[328832669,1717855861091,-500.0,0.0001863,2]
[328832670,1717855861101,-500.0,0.0001863,2]
[328832671,1717855861110,-500.0,0.0001863,2]
[328832672,1717855861120,-1462.49,0.0001863,2]
[328832673,1717855861130,-500.0,0.0001863,2]
[328832674,1717855861140,-570.14,0.0001863,2]
[328832675,1717855861149,-1790.87,0.0001863,2]
[328832676,1717855861160,-586.65,0.0001863,2]
[328832677,1717855861170,-500.0,0.0001863,2]
[328832678,1717855861180,-654.96,0.0001863,2]
[328832679,1717855861190,-500.0,0.0001863,2]
[328832680,1717855861200,-1480.04,0.0001863,2]
[328832681,1717855861209,-167.95309647,0.0001863,2]
[328832682,1717855861219,-877.21,0.0001863,2]
[328832683,1717855861229,-619.8,0.0001863,2]
[328832684,1717855861239,-975.62,0.0001863,2]
[328832685,1717855861249,-660.83,0.0001863,2]
[328832686,1717855861259,-537.35,0.0001863,2]
[328832687,1717855861268,-500.0,0.0001863,2]
[328832688,1717855861279,-1571.4,0.0001863,2]
[328832689,1717855861289,-359.66870055,0.0001863,2]
[328832690,1717855861298,-920.56,0.0001863,2]
[328832691,1717855861309,-732.6,0.0001863,2]
[328832692,1717855861320,-500.0,0.0001863,2]
[328832693,1717855861331,-1098.5,0.0001863,2]
[328832694,1717855861341,-500.0,0.0001863,2]
[328832695,1717855861352,-322.04926993,0.0001863,2]
[328832696,1717855861362,-601.82,0.0001863,2]
[328832697,1717855861371,-1687.64,0.0001863,2]
[328832698,1717855861381,-500.0,0.0001863,2]
[328832699,1717855861391,-500.0,0.0001863,2]
[328832700,1717855861401,-871.53,0.0001863,2]
[328832701,1717855861411,-1512.7,0.0001863,2]
[328832702,1717855861422,-528.82,0.0001863,2]
[328832703,1717855861432,-500.91,0.0001863,2]
[328832704,1717855861443,-500.0,0.0001863,2]
[328832705,1717855861452,-828.48,0.0001863,2]
[328832706,1717855861463,-1556.87,0.0001863,2]
[328832707,1717855861473,-536.0,0.0001863,2]
[328832708,1717855861483,-1276.66,0.0001863,2]
[328832709,1717855861493,-804.5,0.0001863,2]
[328832710,1717855861503,-500.0,0.0001863,2]
[328832711,1717855861513,-2157.52,0.0001863,2]
[328832712,1717855861523,-500.0,0.0001863,2]
[328832713,1717855861533,-500.0,0.0001863,2]
[328832714,1717855861544,-500.0,0.0001863,2]
[328832715,1717855861554,-500.0,0.0001863,2]
[328832716,1717855861564,-500.0,0.0001863,2]
[328832717,1717855861574,-992.02,0.0001863,2]
[328832718,1717855861584,-500.0,0.0001863,2]
[328832719,1717855861595,-500.0,0.0001863,2]
[328832720,1717855861605,-542.52,0.0001863,2]
[328832721,1717855861615,-751.63,0.0001863,2]
[328832722,1717855861625,-558.38,0.0001863,2]
[328832723,1717855861635,-1485.0,0.0001863,2]
[328832724,1717855861645,-516.33,0.0001863,2]
[328832725,1717855861654,-1620.66,0.0001863,2]
[328832726,1717855861664,-638.56971242,0.0001863,2]
[328832727,1717855861674,-2740.38,0.0001863,2]
[328832728,1717855861685,-748.59,0.0001863,2]
[328832729,1717855861694,-500.0,0.0001863,2]
[328832730,1717855861704,-2769.46,0.0001863,2]
[328832731,1717855861714,-545.82,0.0001863,2]
[328832732,1717855861725,-1406.26,0.0001863,2]
[328832733,1717855861734,-1188.05,0.0001863,2]
[328832734,1717855861744,-500.0,0.0001863,2]
[328832735,1717855861754,-500.0,0.0001863,2]
[328832736,1717855861763,-1936.86,0.0001863,2]
[328832737,1717855861773,-500.0,0.0001863,2]
[328832738,1717855861783,-3481.6,0.0001863,2]
[328832739,1717855861793,-830.79,0.0001863,2]
[328832740,1717855861802,-500.0,0.0001863,2]
[328832741,1717855861812,-4055.43,0.0001863,2]
[328832742,1717855861821,-535.13,0.0001863,2]
[328832743,1717855861832,-1711.92,0.0001863,2]
[328832744,1717855861841,-7839.29,0.0001863,2]
[328832745,1717855861851,-500.0,0.0001863,2]
[328832746,1717855861861,-4240.14,0.0001863,2]
[328832747,1717855861871,-500.0,0.0001863,2]
[328832748,1717855861880,-500.0,0.0001863,2]
[328832749,1717855861890,-777.81,0.0001863,2]
[328832750,1717855861900,-656.61,0.0001863,2]
[328832751,1717855861910,-837.81,0.0001863,2]
[328832752,1717855861920,-2125.44,0.0001863,2]
[328832753,1717855861931,-858.72,0.0001863,2]
[328832754,1717855861940,-557.3,0.0001863,2]
[328832755,1717855861950,-500.0,0.0001863,2]
[328832756,1717855861960,-1581.68,0.0001863,2]
[328832757,1717855861973,-2009.83,0.0001863,2]
[328832758,1717855861983,-719.8,0.0001863,2]
[328832759,1717855861993,-5176.99,0.0001863,2]
[328832760,1717855862004,-639.4,0.0001863,2]
[328832761,1717855862015,-9141.08,0.0001863,2]
[328832762,1717855862025,-9689.53,0.0001863,2]
[328832763,1717855862035,-1831.62,0.0001863,2]
[328832764,1717855862045,-2465.76,0.0001863,2]
[328832765,1717855862057,-5196.1,0.0001863,2]
[328832766,1717855862067,-784.21,0.0001863,2]
[328832767,1717855862078,-500.0,0.0001863,2]
[328832768,1717855862088,-2008.87,0.0001863,2]
[328832769,1717855862097,-1321.87,0.0001863,2]
[328832770,1717855862107,-731.55,0.0001863,2]
[328832771,1717855862117,-500.0,0.0001863,2]
[328832772,1717855862127,-500.48,0.0001863,2]
[328832773,1717855862137,-913.11,0.0001863,2]
[328832774,1717855862147,-882.37,0.0001863,2]
[328832775,1717855862157,-500.0,0.0001863,2]
[328832776,1717855862167,-500.0,0.0001863,2]
[328832777,1717855862178,-529.22,0.0001863,2]
[328832778,1717855862189,-1072.16,0.0001863,2]
[328832779,1717855862199,-2705.64,0.0001863,2]
[328832780,1717855862208,-500.0,0.0001863,2]
[328832781,1717855862218,-568.5,0.0001863,2]
[328832782,1717855862227,-320.0,0.0001867,2]
[328832783,1717855862237,-317.7,0.0001868,3]
[328832784,1717855862247,-151.0,0.0001868,3]
[328832785,1717855862257,-4234.812629,0.00018703,2]
[328832786,1717855862269,-4869.44421,0.00018703,2]
[328832787,1717855862278,-2568.36534296,0.000188,3]
[328832788,1717855862289,-153.0,0.00018866,2]
[328832789,1717855862299,-589.394411,0.00018866,2]
[328832790,1717855862309,-9154.44342465,0.000189,2]
[328832791,1717855862320,-1015.43,0.00018904,2]
[328832792,1717855862331,-568.09,0.00018904,2]
[328832793,1717855862340,-561.44,0.00018904,2]
[328832794,1717855862350,-1017.89,0.00018904,4]
[328832795,1717855862360,-500.0,0.00018904,2]
[328832796,1717855862370,-500.0,0.00018904,2]
[328832797,1717855862380,-500.0,0.00018904,2]
[328832798,1717855862390,-500.0,0.00018904,2]
[328832799,1717855862400,-1462.49,0.00018904,2]
[328832800,1717855862410,-500.0,0.00018904,2]
[328832801,1717855862420,-570.14,0.00018904,2]
[328832802,1717855862429,-1790.87,0.00018904,2]
[328832803,1717855862439,-586.65,0.00018904,2]
[328832804,1717855862449,-458.14574654,0.00018904,2]
[328832805,1717855862459,-654.96,0.00018904,2]
[328832806,1717855862469,-500.0,0.00018904,2]
[328832807,1717855862479,-1480.04,0.00018904,2]
[328832808,1717855862489,-877.21,0.00018904,2]
[328832809,1717855862499,-619.8,0.00018904,2]
[328832810,1717855862509,-975.62,0.00018904,2]
[328832811,1717855862519,-660.83,0.00018904,2]
[328832812,1717855862529,-537.35,0.00018904,2]
[328832813,1717855862539,-500.0,0.00018904,2]
[328832814,1717855862550,-1571.4,0.00018904,2]
[328832815,1717855862560,-920.56,0.00018904,2]
[328832816,1717855862570,-732.6,0.00018904,2]
[328832817,1717855862582,-500.0,0.00018904,2]
[328832818,1717855862592,-1098.5,0.00018904,2]
[328832819,1717855862603,-500.0,0.00018904,2]
[328832820,1717855862613,-601.82,0.00018904,2]
[328832821,1717855862624,-1687.64,0.00018904,2]
[328832822,1717855862634,-500.0,0.00018904,2]
[328832823,1717855862726,-500.0,0.00018904,2]
[328832824,1717855862736,-871.53,0.00018904,2]
[328832825,1717855862747,-1512.7,0.00018904,2]
[328832826,1717855862757,-528.82,0.00018904,2]
[328832827,1717855862767,-500.91,0.00018904,2]
[328832828,1717855862777,-500.0,0.00018904,2]
[328832829,1717855862787,-828.48,0.00018904,2]
[328832830,1717855862796,-1556.87,0.00018904,2]
[328832831,1717855862805,-536.0,0.00018904,2]
[328832832,1717855862815,-1276.66,0.00018904,2]
[328832833,1717855862825,-804.5,0.00018904,2]
[328832834,1717855862835,-500.0,0.00018904,2]
[328832835,1717855862844,-2157.52,0.00018904,2]
[328832836,1717855862855,-500.0,0.00018904,2]
[328832837,1717855862865,-500.0,0.00018904,2]
[328832838,1717855862875,-500.0,0.00018904,2]
[328832839,1717855862885,-207.19361884,0.00018904,2]
[328832840,1717855862895,-500.0,0.00018904,2]
[328832841,1717855862905,-992.02,0.00018904,2]
[328832842,1717855862915,-500.0,0.00018904,2]
[328832843,1717855862925,-500.0,0.00018904,2]
[328832844,1717855862935,-542.52,0.00018904,2]
[328832845,1717855862945,-751.63,0.00018904,2]
[328832846,1717855862956,-558.38,0.00018904,2]
[328832847,1717855862968,-1485.0,0.00018904,2]
[328832848,1717855862980,-516.33,0.00018904,2]
[328832849,1717855862991,-1620.66,0.00018904,2]
[328832850,1717855863001,-2740.38,0.00018904,2]
[328832851,1717855863011,-748.59,0.00018904,2]
[328832852,1717855863021,-500.0,0.00018904,2]
[328832853,1717855863030,-2769.46,0.00018904,2]
[328832854,1717855863040,-545.82,0.00018904,2]
[328832855,1717855863051,-1406.26,0.00018904,2]
[328832856,1717855863061,-1188.05,0.00018904,2]
[328832857,1717855863071,-500.0,0.00018904,2]
[328832858,1717855863082,-500.0,0.00018904,2]
[328832859,1717855863092,-1936.86,0.00018904,2]
[328832860,1717855863102,-500.0,0.00018904,2]
[328832861,1717855863112,-3481.6,0.00018904,2]
[328832862,1717855863122,-830.79,0.00018904,2]
[328832863,1717855863131,-500.0,0.00018904,2]
[328832864,1717855863142,-4055.43,0.00018904,2]
[328832865,1717855863152,-535.13,0.00018904,2]
[328832866,1717855863162,-1711.92,0.00018904,2]
[328832867,1717855863172,-7839.29,0.00018904,2]
[328832868,1717855863182,-500.0,0.00018904,2]
[328832869,1717855863192,-4240.14,0.00018904,2]
[328832870,1717855863201,-500.0,0.00018904,2]
[328832871,1717855863211,-500.0,0.00018904,2]
[328832872,1717855863221,-777.81,0.00018904,2]
[328832873,1717855863231,-656.61,0.00018904,2]
[328832874,1717855863241,-837.81,0.00018904,2]
[328832875,1717855863251,-2125.44,0.00018904,2]
[328832876,1717855863261,-858.72,0.00018904,2]
[328832877,1717855863274,-557.3,0.00018904,2]
[328832878,1717855863284,-401.48516571,0.00018904,2]
[328832879,1717855863295,-1581.68,0.00018904,2]
[328832880,1717855863305,-2009.83,0.00018904,2]
[328832881,1717855863317,-719.8,0.00018904,2]
[328832882,1717855863329,-5176.99,0.00018904,2]
[328832883,1717855863339,-639.4,0.00018904,2]
[328832884,1717855863349,-9141.08,0.00018904,2]
[328832885,1717855863359,-9689.53,0.00018904,2]
[328832886,1717855863369,-1831.62,0.00018904,2]
[328832887,1717855863379,-2465.76,0.00018904,2]
[328832888,1717855863390,-5196.1,0.00018904,2]
[328832889,1717855863400,-784.21,0.00018904,2]
[328832890,1717855863412,-500.0,0.00018904,2]
[328832891,1717855863423,-2008.87,0.00018904,2]
[328832892,1717855863433,-1321.87,0.00018904,2]
[328832893,1717855863443,-731.55,0.00018904,2]
[328832894,1717855863454,-444.27198104,0.00018904,2]
[328832895,1717855863464,-500.48,0.00018904,2]
[328832896,1717855863476,-913.11,0.00018904,2]
[328832897,1717855863488,-882.37,0.00018904,2]
[328832898,1717855863499,-500.0,0.00018904,2]
[328832899,1717855863511,-500.0,0.00018904,2]
[328832900,1717855863520,-529.22,0.00018904,2]
[328832901,1717855863531,-1072.16,0.00018904,2]
[328832902,1717855863541,-2705.64,0.00018904,2]
[328832903,1717855863551,-500.0,0.00018904,2]
[328832904,1717855863562,-568.5,0.00018904,2]
[328832905,1717855863572,-317.7,0.00018929,3]
[328832906,1717855863583,-151.0,0.00018929,3]
[328832907,1717855863593,-4234.812629,0.00018931,2]
[328832908,1717855863602,-4869.44421,0.00018931,2]
[328832909,1717855863613,-163.56933448,0.00019,2]
[328832910,1717855863623,-1000.0,0.00019,5]
[328832911,1717855863633,-1000.0,0.00019,2]
[328832912,1717855863643,-153.0,0.00019002,2]
[328832913,1717855863654,-580.684528,0.000191,8]
[328832914,1717855863665,-4234.812629,0.00019159,2]
[328832915,1717855863675,-4869.44421,0.00019159,2]
[328832916,1717855863685,-500.0,0.00019178,2]
[328832917,1717855863695,-500.0,0.00019178,2]
[328832918,1717855863707,-500.0,0.00019178,2]
[328832919,1717855863717,-500.00000001,0.00019178,2]
[328832920,1717855863727,-500.0,0.00019178,2]
[328832921,1717855863737,-265.58899316,0.00019178,2]
[328832922,1717855863747,-500.0,0.00019178,2]
[328832923,1717855863757,-500.0,0.00019178,2]
[328832924,1717855863767,-500.0,0.00019178,2]
[328832925,1717855863777,-550.0,0.00019178,2]
[328832926,1717855863786,-500.0,0.00019178,2]
[328832927,1717855863796,-500.0,0.00019178,2]
[328832928,1717855863807,-200.0,0.00019178,2]
[328832929,1717855863817,-500.0,0.00019178,2]
[328832930,1717855863828,-500.0,0.00019178,2]
[328832931,1717855863838,-500.0,0.00019178,2]
[328832932,1717855863848,-630.07626706,0.00019178,2]
[328832933,1717855863858,-500.0,0.00019178,2]
[328832934,1717855863868,-550.0,0.00019178,2]
[328832935,1717855863878,-409.8432063,0.00019178,2]
[328832936,1717855863888,-328.10956849,0.00019178,2]
[328832937,1717855863899,-448.88656136,0.00019178,2]
[328832938,1717855863909,-200.0,0.00019178,2]
[328832939,1717855863920,-366.14402103,0.00019178,2]
[328832940,1717855863929,-500.0,0.00019178,2]
[328832941,1717855863940,-500.0,0.00019178,2]
[328832942,1717855863950,-327.24867894,0.00019178,2]
[328832943,1717855863960,-500.0,0.00019178,2]
[328832944,1717855863971,-500.0,0.00019178,2]
[328832945,1717855863983,-502.67391609,0.00019178,2]
[328832946,1717855863994,-500.0,0.00019178,2]
[328832947,1717855864004,-500.0,0.00019178,2]
[328832948,1717855864015,-500.0,0.00019178,2]
[328832949,1717855864025,-254.43653394,0.00019178,2]
[328832950,1717855864035,-500.0,0.00019178,2]
[328832951,1717855864044,-605.5794493,0.00019178,2]
[328832952,1717855864056,-500.0,0.00019178,2]
[328832953,1717855864066,-179.57574852,0.00019178,2]
[328832954,1717855864077,-500.0,0.00019178,2]
[328832955,1717855864086,-500.0,0.00019178,2]
[328832956,1717855864095,-398.27349748,0.00019178,2]
[328832957,1717855864105,-500.0,0.00019178,2]
[328832958,1717855864115,-302.52787718,0.00019178,2]
[328832959,1717855864125,-162.0,0.00019178,2]
[328832960,1717855864135,-500.0,0.00019178,2]
[328832961,1717855864146,-200.0,0.00019178,2]
[328832962,1717855864156,-597.39403543,0.00019178,2]
[328832963,1717855864166,-197.13148774,0.00019178,2]
[328832964,1717855864176,-500.0,0.00019178,2]
[328832965,1717855864185,-500.0,0.00019178,2]
[328832966,1717855864195,-400.0,0.00019178,2]
[328832967,1717855864204,-500.0,0.00019178,2]
[328832968,1717855864214,-500.0,0.00019178,2]
[328832969,1717855864223,-387.71305096,0.00019178,2]
[328832970,1717855864233,-500.0,0.00019178,2]
[328832971,1717855864243,-500.0,0.00019178,2]
[328832972,1717855864253,-500.0,0.00019178,2]
[328832973,1717855864263,-250.0,0.00019178,2]
[328832974,1717855864273,-500.0,0.00019178,2]
[328832975,1717855864283,-500.0,0.00019178,2]
[328832976,1717855864292,-500.0,0.00019178,2]
[328832977,1717855864302,-500.0,0.00019178,2]
[328832978,1717855864312,-200.0,0.00019178,2]
[328832979,1717855864321,-417.37359819,0.00019178,2]
[328832980,1717855864405,-518.65760386,0.00019178,2]
[328832981,1717855864414,-500.0,0.00019178,2]
[328832982,1717855864424,-158.27364827,0.00019178,2]
[328832983,1717855864434,-500.0,0.00019178,2]
[328832984,1717855864444,-500.0,0.00019178,2]
[328832985,1717855864454,-396.34801653,0.00019178,2]
[328832986,1717855864464,-373.62991197,0.00019178,2]
[328832987,1717855864474,-500.0,0.00019178,2]
[328832988,1717855864483,-500.0,0.00019178,2]
[328832989,1717855864494,-612.33897448,0.00019178,2]
[328832990,1717855864504,-500.0,0.00019178,2]
[328832991,1717855864515,-396.33096018,0.00019178,2]
[328832992,1717855864526,-500.0,0.00019178,2]
[328832993,1717855864537,-500.0,0.00019178,2]
[328832994,1717855864547,-650.0,0.00019178,2]
[328832995,1717855864556,-500.0,0.00019178,2]
[328832996,1717855864566,-500.0,0.00019178,2]
[328832997,1717855864575,-500.0,0.00019178,2]
[328832998,1717855864585,-500.0,0.00019178,2]
[328832999,1717855864594,-500.0,0.00019178,2]
[328833000,1717855864604,-607.98404939,0.00019178,2]
[328833001,1717855864614,-369.86141383,0.00019178,2]
[328833002,1717855864624,-550.0,0.00019178,2]
[328833003,1717855864634,-500.0,0.00019178,2]
[328833004,1717855864646,-540.20206338,0.00019178,2]
[328833005,1717855864656,-500.0,0.00019178,2]
[328833006,1717855864666,-434.40925526,0.00019178,2]
[328833007,1717855864676,-500.0,0.00019178,2]
[328833008,1717855864686,-500.0,0.00019178,2]
[328833009,1717855864698,-189.81808256,0.00019178,2]
[328833010,1717855864708,-500.0,0.00019178,2]
[328833011,1717855864718,-815.61992013,0.00019178,2]
[328833012,1717855864728,-500.0,0.00019178,2]
[328833013,1717855864738,-815.61992013,0.00019178,2]
[328833014,1717855864748,-500.0,0.00019178,2]
[328833015,1717855864758,-377.87911139,0.00019178,2]
[328833016,1717855864768,-184.64058407,0.00019178,2]
[328833017,1717855864778,-815.61992013,0.00019178,2]
[328833018,1717855864788,-815.61992013,0.00019178,2]
[328833019,1717855864798,-299.31811218,0.00019178,2]
[328833020,1717855864809,-815.61992013,0.00019178,2]
[328833021,1717855864819,-500.0,0.00019178,2]
[328833022,1717855864830,-815.61992013,0.00019178,2]
[328833023,1717855864839,-500.0,0.00019178,2]
[328833024,1717855864850,-815.61992013,0.00019178,2]
[328833025,1717855864860,-815.61992013,0.00019178,2]
[328833026,1717855864870,-500.0,0.00019178,2]
[328833027,1717855864879,-500.0,0.00019178,2]
[328833028,1717855864890,-155.39008754,0.00019178,2]
[328833029,1717855864901,-500.0,0.00019178,2]
[328833030,1717855864910,-815.61992013,0.00019178,2]
[328833031,1717855864919,-500.0,0.00019178,2]
[328833032,1717855864928,-815.61992013,0.00019178,2]
[328833033,1717855864937,-411.14787029,0.00019178,2]
[328833034,1717855864946,-500.0,0.00019178,2]
[328833035,1717855864956,-450.95688966,0.00019178,2]
[328833036,1717855864967,-500.0,0.00019178,2]
[328833037,1717855864980,-179.51587257,0.00019178,2]
[328833038,1717855864989,-382.98147318,0.00019178,2]
[328833039,1717855864998,-500.0,0.00019178,2]
[328833040,1717855865008,-343.75048238,0.00019178,2]
[328833041,1717855865017,-592.08161043,0.00019178,2]
[328833042,1717855865027,-500.0,0.00019178,2]
[328833043,1717855865036,-271.80855543,0.00019178,2]
[328833044,1717855865048,-500.0,0.00019178,2]
[328833045,1717855865057,-303.10391464,0.00019178,2]
[328833046,1717855865067,-482.98097176,0.00019178,2]
[328833047,1717855865076,-315.58256139,0.00019178,2]
[328833048,1717855865085,-500.0,0.00019178,2]
[328833049,1717855865094,-500.0,0.00019178,2]
[328833050,1717855865104,-245.39892364,0.00019178,2]
[328833051,1717855865113,-580.05856598,0.00019178,2]
[328833052,1717855865122,-437.55532937,0.00019178,2]
[328833053,1717855865131,-416.89605338,0.00019178,2]
[328833054,1717855865141,-500.0,0.00019178,2]
[328833055,1717855865150,-309.26855935,0.00019178,2]
[328833056,1717855865159,-231.95702799,0.00019178,2]
[328833057,1717855865169,-500.86320293,0.00019178,2]
[328833058,1717855865178,-500.0,0.00019178,2]
[328833059,1717855865187,-500.0,0.00019178,2]
[328833060,1717855865197,-500.0,0.00019178,2]